[Event "GRENKE Chess Classic 2024"]
[Site "Karlsruhe"]
[Date "2024.03.27"]
[Round "3.1"]
[White "Vachier-Lagrave, Maxime"]
[Black "Fridman, Daniel"]
[Result "0-1"]
[ECO "C02"]
[WhiteElo "2728"]
[BlackElo "2590"]
[Annotator "TA"]
[PlyCount "108"]
[EventDate "2024.03.26"]
[EventType "tourn"]
[EventCountry "GER"]
[SourceTitle "playchess.com"]
[Source "ChessBase"]
[SourceQuality "1"]
[TimeControl "2700+10"]

{[%evp 45,108,0,0,0,0,0,0,0,0,11,41,38,34,38,58,58,69,79,85,84,66,96,68,101,93,95,66,74,136,122,111,0,210,206,137,0,118,0,8,8,5,10,119,13,0,0,63,-320,-303,-339,-343,-302,-82,-850,-814,-11803,-12420,-29943,-29937,-29961,-29959,-12850,-6195,-5165,-1624]} 1. e4 {[%emt 0:00:01]} e6 {[%emt 0:00:01]} 2. d4 {[%emt 0:00:02]} d5 {[%emt 0:00:02]} 3. e5 {[%emt 0:00:01]} c5 {[%emt 0:00:01]} 4. c3 {[%emt 0:00:02]} Qb6 {[%emt 0:00:03]} 5. Nf3 {[%emt 0:00:02]} Nc6 {[%emt 0:00:01]} 6. a3 {[%emt 0:00:12]} Nh6 {[%emt 0:00:04]} 7. Bd3 {[%emt 0:00:02] is currently scoring better than 7.b4.} cxd4 {[%emt 0:00:04] C02: French: Advance Variation.} 8. O-O {[%emt 0:00:02]} Bd7 {[%emt 0:00:05]} 9. b4 {[%emt 0:02:20]} Rc8 {[%emt 0:00:02]} 10. h3 {[%emt 0:01:14]} a6 {[%emt 0:04:53]} 11. Bb2 {[%emt 0:01:05]} Nf5 {[%emt 0:00:06]} 12. Bxf5 {[%emt 0:06:04]} exf5 {[%emt 0:00:03]} 13. cxd4 {[%emt 0:00:01]} Na5 $146 {[%emt 0:00:01]} ({Predecessor:} 13... Be6 14. Nc3 Be7 15. Na4 Qb5 16. Nc5 a5 17. Bc3 b6 18. a4 Qc4 19. b5 bxc5 20. Rc1 Nb4 21. Bxb4 Qxb4 22. Rb1 Qa3 23. Ra1 {½-½ Desmarais,S (2296)-Juegel,M (2068) W-ch WS/M/801 email 2021}) 14. Nc3 {[%emt 0:06:09]} Nc4 {[%emt 0:01:04]} 15. Bc1 {[%emt 0:00:01]} Qc6 {[%emt 0:02:25]} 16. Re1 {[%emt 0:01:42]} Be7 {[%emt 0:00:40]} 17. Bg5 {[%emt 0:04:55]} Bxg5 {[%emt 0:12:48]} 18. Nxg5 {[%emt 0:00:04]} O-O {[%emt 0:00:03]} 19. Ne2 {[%emt 0:01:01]} h6 {[%emt 0:01:37]} 20. Nf3 {[%emt 0:00:01]} Nb2 {[%emt 0:00:54]} 21. Qb1 {[%emt 0:04:00]} Qc2 {[%emt 0:01:07]} 22. Nf4 {[%emt 0:00:02]} Be6 {[%emt 0:00:26]} 23. a4 {[%emt 0:00:12]} g5 {[%emt 0:01:47]} 24. Ra2 {[%emt 0:00:49]} Qxb1 {[%emt 0:02:26]} 25. Rxb1 {[%emt 0:00:02]} gxf4 {[%emt 0:00:34]} (25... Nc4 26. Nxe6 fxe6 27. a5 $14) 26. Rbxb2 {[%emt 0:04:06]} Rc1+ {[%emt 0:01:34]} 27. Kh2 Rfc8 {[%emt 0:01:52]} 28. Ng1 {[%emt 0:00:11]} Rf1 {[%emt 0:01:26]} 29. Ne2 {[%emt 0:00:57]} f3 {[%emt 0:00:02]} (29... Rxf2 $6 30. Kg1 Rxe2 31. Rxe2 $16) 30. gxf3 {[%emt 0:01:19]} Rxf2+ {[%emt 0:00:03]} 31. Kg3 {[%emt 0:00:01]} Rf1 {[%emt 0:00:03]} 32. b5 {[%emt 0:01:26]} a5 {[%emt 0:03:03]} 33. Rc2 {[%emt 0:00:52]} Rc4 {[%emt 0:04:33]} 34. Rxc4 {[%emt 0:01:23]} dxc4 {[%emt 0:00:01]} 35. Nc3 $1 {[%emt 0:00:01]} Rc1 {[%emt 0:01:41]} 36. Ra3 {[%emt 0:00:01]} Rc2 {[%emt 0:00:03]} ({Black should play} 36... Kf8) 37. d5 $16 {[%emt 0:00:01]} Bd7 {[%emt 0:00:01]} 38. d6 {[%emt 0:00:02]} ({White should try} 38. Nd1 $1 $16) 38... Be6 $2 {[%emt 0:00:34] [#]} (38... Rd2 $11 {and Black has nothing to worry.} 39. Ra2 Rxa2 40. Nxa2 f6) 39. Nd5 $1 $18 {[%emt 0:00:09]} Kf8 {[%emt 0:00:11]} (39... Bxd5 $2 40. d7 Kg7 41. d8=Q $18 (41. d8=R Be6 $18)) 40. Rc3 {[%emt 0:03:57]} (40. Nf6 $16 c3 41. Ra1 f4+ 42. Kxf4) 40... Re2 {[%emt 0:01:08] [#]} (40... Rxc3 $11 41. Nxc3 f6) 41. Ne3 {[%emt 0:00:24]} (41. Nc7 $1 $16 {[%cal Rc7e6] Nxe6+ is the strong threat.} Rxe5 42. Kf4) 41... Ra2 {[%emt 0:00:36]} 42. Kf4 {[%emt 0:00:52]} (42. Nxc4 $2 {too greedy.} f4+ 43. Kxf4 Rxa4 $19) 42... Rxa4 {[%emt 0:00:02]} 43. Nxf5 {[%emt 0:00:02]} Ra1 {[%emt 0:02:24]} (43... Rb4 $11 {remains equal.}) 44. Nd4 {[%emt 0:00:33]} (44. Nxh6 $16 a4 45. Ng4) 44... Bd5 $11 {[%emt 0:00:02]} 45. Nc2 {[%emt 0:00:29]} Rb1 {[%emt 0:00:34]} (45... Rd1 $11) 46. Na3 $2 {[%emt 0:01:12][%mdl 8192]} (46. Ne3 $14 {stays ahead.} Be6 47. Ng4 (47. Nxc4 $2 {is the wrong capture.} Rb4 $19)) 46... Rb3 $19 {[%emt 0:00:23]} 47. Rxb3 {[%emt 0:00:02]} cxb3 {[%emt 0:00:01]} 48. Ke3 {[%emt 0:00:04]} Ke8 $2 {[%emt 0:00:21]} (48... b2 $19 {has better winning chances. White must now prevent ...Ba2.} 49. Kd2 Be6 (49... Bxf3 50. Kc2 $17)) 49. f4 $2 {[%emt 0:00:07][%mdl 8192]} (49. Kd2 $17) 49... Be6 $19 {[%emt 0:00:05]} 50. h4 {[%emt 0:02:14]} b2 {[%emt 0:00:02]} 51. Kd4 {[%emt 0:00:01]} Bf5 {[%emt 0:00:14]} 52. Kc5 {[%emt 0:00:01]} Kd7 {[%emt 0:00:28]} 53. Kb6 {[%emt 0:00:08]} a4 {[%emt 0:00:07]} (53... b1=B $2 54. Kxb7 a4 55. b6 Bbe4+ 56. Ka6 $19) 54. Ka5 {[%emt 0:00:01]} Bc2 {[%emt 0:00:22]} 0-1

[Event "GRENKE Chess Classic 2024"]
[Site "Karlsruhe"]
[Date "2024.03.27"]
[Round "3.2"]
[White "Carlsen, Magnus"]
[Black "Ding, Liren"]
[Result "1/2-1/2"]
[ECO "E10"]
[WhiteElo "2830"]
[BlackElo "2762"]
[Annotator "TA"]
[PlyCount "96"]
[EventDate "2024.03.26"]
[EventType "tourn"]
[EventCountry "GER"]
[SourceTitle "playchess.com"]
[Source "ChessBase"]
[SourceQuality "1"]
[TimeControl "2700+10"]

{[%evp 12,96,0,0,0,-15,29,30,33,2,31,4,8,0,12,9,30,29,43,37,40,33,30,31,33,29,58,27,39,47,39,28,37,35,26,33,27,32,24,30,75,75,80,70,66,0,1,0,61,52,50,0,58,0,0,0,11,0,0,0,19,48,20,20,64,64,64,64,64,64,64,64,64,64,64,64,64,64,64,64,64,64,71,0,71,0,71]} 1. d4 {[%emt 0:00:10]} Nf6 {[%emt 0:00:14]} 2. c4 {[%emt 0:00:02]} e6 {[%emt 0:00:16]} 3. Nf3 {[%emt 0:00:04]} d5 {[%emt 0:00:04]} 4. cxd5 {[%emt 0:00:13]} exd5 {[%emt 0:00:02]} 5. Nc3 {[%emt 0:00:02]} c6 {[%emt 0:01:05]} 6. Bf4 {[%emt 0:00:15]} Bf5 {[%emt 0:01:41]} 7. e3 {[%emt 0:00:08]} Nbd7 {[%emt 0:00:38][%cal Bb8d7,Bd7f8,Bf8e6][%mdl 32] D35: Queen's Gambit Declined: Exchange Variation.} 8. Nh4 {[%emt 0:00:24] 8.h3 is the modern continuation.} Be4 {[%emt 0:02:11]} 9. f3 {[%emt 0:04:14]} Bg6 {[%emt 0:00:06]} 10. g4 {[%emt 0:01:55] Dodges Nh5} Be7 {[%emt 0:01:39][%cal Of6e4]} 11. Nxg6 {[%emt 0:00:53]} hxg6 {[%emt 0:00:10]} 12. Qc2 $146 {[%emt 0:00:06]} ({Predecessor:} 12. Qb3 Qb6 13. Qc2 Nf8 14. O-O-O Ne6 15. Bg3 O-O-O 16. h4 Bd6 17. Bf2 Qc7 18. Bh3 {1-0 Sivuk,V (2490)-Raja,R (2500) Rilton Cup 51st 2023 (7)}) 12... Nf8 {[%emt 0:00:32][%cal Og6g5]} 13. O-O-O {[%emt 0:04:43]} Ne6 {[%emt 0:00:07]} 14. Bg3 {[%emt 0:00:31]} Bd6 {[%emt 0:00:23]} 15. Be1 {[%emt 0:00:06]} Qc7 {[%emt 0:03:02][%cal Og6g5]} 16. Kb1 {[%emt 0:03:04]} O-O-O {[%emt 0:00:09][%cal Rh8h2]} 17. h4 {[%emt 0:00:07][%cal Bh2h4,Bh4h5][%mdl 32]} Kb8 {[%emt 0:00:06]} 18. Rg1 {[%emt 0:00:22][%cal Bh1g1,Bg1g2,Bg2c2][%mdl 32]} a6 {[%emt 0:02:39]} 19. Rg2 {[%emt 0:01:09]} g5 {[%emt 0:00:29]} 20. h5 {[%emt 0:01:07]} c5 {[%emt 0:02:02]} 21. dxc5 {[%emt 0:02:25]} Bxc5 {[%emt 0:00:07]} 22. Na4 {[%emt 0:01:29]} Bxe3 {[%emt 0:05:46]} 23. Qb3 {[%emt 0:00:01][%csl LRa6,LRe3]} d4 $1 {[%emt 0:00:21] Threatens to win with ...Rc8.} 24. Rc2 {[%emt 0:03:03] Some like it hot} Qd6 {[%emt 0:01:19]} 25. Ba5 {[%emt 0:00:17]} Qd5 26. Bxd8 {[%emt 0:02:37]} Qxb3 {[%emt 0:00:33]} 27. axb3 {[%emt 0:00:02]} Rxd8 {[%emt 0:00:02]} 28. Nc5 {[%emt 0:00:09]} ({White should try} 28. Bc4 $14) 28... Nd5 $1 $11 {[%emt 0:02:52]} 29. Bd3 {[%emt 0:02:57]} Nb4 {[%emt 0:02:39]} (29... Bf4 $11) 30. Nxe6 $14 {[%emt 0:03:41]} fxe6 {[%emt 0:00:03]} 31. Rc5 {[%emt 0:00:18]} ({Better is} 31. Rc4 $14 Nc6 32. Rc5) 31... Rd5 {[%emt 0:01:30]} (31... Bf4 $11) 32. Rc4 {[%emt 0:00:54]} (32. Rxd5 $14 exd5 33. Bf5) 32... a5 $1 $11 {[%emt 0:00:12]} 33. Be4 {[%emt 0:00:02]} Rd6 {[%emt 0:00:19]} 34. Rc5 {[%emt 0:00:50]} b6 {[%emt 0:00:26]} 35. Rc4 {[%emt 0:00:04]} e5 {[%emt 0:00:32] [#]} 36. Rxb4 $1 {[%emt 0:00:20]} axb4 {[%emt 0:00:01][%mdl 4096] Endgame. KRB-KRB} 37. Kc2 {[%emt 0:00:02]} d3+ {[%emt 0:03:28]} 38. Rxd3 {[%emt 0:03:08]} Rxd3 {[%emt 0:00:02]} 39. Kxd3 $14 {[%emt 0:00:02] KB-KB} Bc1 {[%emt 0:00:41]} 40. Kc4 {[%emt 0:00:01] Hoping for Kd5.} Kc7 {[%emt 0:00:01]} 41. Kd5 {[%emt 0:00:02] And now Ke6 would win.} Kd7 {[%emt 0:00:10]} 42. Kxe5 {[%emt 0:00:02]} Ke7 {[%emt 0:00:05]} 43. Kf5 {[%emt 0:00:02]} Bd2 {[%emt 0:00:11]} 44. Kg6 {[%emt 0:00:07]} Kf8 {[%emt 0:00:00]} 45. Bd5 {[%emt 0:00:01]} Bc1 {[%emt 0:00:04]} 46. Bc4 {[%emt 0:00:02]} Bd2 {[%emt 0:00:02]} 47. Bd5 {[%emt 0:00:01]} Bc1 {[%emt 0:00:01]} 48. Bc4 {[%emt 0:00:01]} Bd2 $1 {[%emt 0:00:01]} 1/2-1/2

[Event "GRENKE Chess Classic 2024"]
[Site "Karlsruhe"]
[Date "2024.03.27"]
[Round "3.3"]
[White "Rapport, Richard"]
[Black "Keymer, Vincent"]
[Result "1/2-1/2"]
[ECO "C50"]
[WhiteElo "2720"]
[BlackElo "2738"]
[Annotator "TA"]
[PlyCount "128"]
[EventDate "2024.03.26"]
[EventType "tourn"]
[EventCountry "GER"]
[SourceTitle "playchess.com"]
[Source "ChessBase"]
[SourceQuality "1"]
[TimeControl "2700+10"]

{[%evp 34,128,14,6,14,0,6,0,3,0,0,0,0,9,2,2,2,0,0,0,0,0,0,-2,0,0,0,0,39,25,61,61,55,55,55,55,55,55,55,55,55,55,55,0,55,0,55,55,55,55,55,55,55,0,55,55,108,55,55,55,55,55,88,0,0,0,0,0,0,0,0,0,0,0,10,10,10,4,4,10,15,0,0,0,0,0,0,0,0,0,0,0,0,0,0,0,0]} 1. e4 {[%emt 0:00:09]} e5 {[%emt 0:00:02]} 2. Nf3 {[%emt 0:00:38]} Nc6 {[%emt 0:00:02]} 3. Bc4 {[%emt 0:00:02]} Nf6 {[%emt 0:00:03]} 4. d3 {[%emt 0:00:02]} Bc5 {[%emt 0:00:03]} 5. c3 {[%emt 0:00:11]} a6 {[%emt 0:00:03]} 6. Nbd2 {[%emt 0:00:09]} O-O {[%emt 0:02:23] C54: Giuoco Piano: 4 c3 Nf6, main lines with 5 d4 and 5 d3.} 7. Bb3 {[%emt 0:00:21]} d6 {[%emt 0:01:04]} 8. Nf1 {[%emt 0:01:01]} Be6 {[%emt 0:04:23]} 9. Ng3 {[%emt 0:05:08]} h6 {[%emt 0:01:27]} 10. O-O {[%emt 0:01:57]} Bxb3 {[%emt 0:01:24]} 11. axb3 {[%emt 0:00:12]} Re8 $146 {[%emt 0:02:01]} ({Predecessor:} 11... Ne7 12. Nh4 Qd7 13. Qf3 Qg4 14. Nhf5 Nxf5 15. Qxf5 Qxf5 16. Nxf5 Kh7 17. b4 Bb6 {½-½ Oviedo,M (1601)-Sosa,B (1395) URU-ch U20/Girls 2018 (4)}) 12. b4 {[%emt 0:00:25]} Bb6 {[%emt 0:01:02]} 13. Re1 {[%emt 0:07:10]} Ne7 {[%emt 0:00:21]} 14. Nh4 {[%emt 0:01:34]} Qd7 {[%emt 0:01:30]} 15. h3 {[%emt 0:01:16]} Rad8 {[%emt 0:02:36]} 16. Qf3 {[%emt 0:00:37]} Kh7 {[%emt 0:07:27]} 17. Nhf5 {[%emt 0:03:44]} Nxf5 {[%emt 0:00:45]} 18. Nxf5 {[%emt 0:00:19]} Ng8 {[%emt 0:02:07]} 19. c4 {[%emt 0:08:36]} Re6 {[%emt 0:02:18]} 20. Be3 {[%emt 0:01:20]} Bxe3 {[%emt 0:00:34]} 21. Qxe3 {[%emt 0:01:14]} Ne7 {[%emt 0:01:04]} 22. Nxe7 {[%emt 0:04:12]} Rxe7 {[%emt 0:00:44]} 23. Ra5 {[%emt 0:02:43]} Rde8 {[%emt 0:01:11]} 24. Rea1 {[%emt 0:00:29]} c6 {[%emt 0:00:46]} 25. Qb6 {[%emt 0:00:14]} Re6 {[%emt 0:01:20]} 26. Qe3 {[%emt 0:00:09]} Rg6 {[%emt 0:02:33]} 27. Kh2 {[%emt 0:00:15]} f5 {[%emt 0:00:22]} 28. Rd1 {[%emt 0:01:07]} Qf7 {[%emt 0:02:39]} 29. b3 {[%emt 0:00:32]} Rf8 {[%emt 0:01:13]} 30. f3 {[%emt 0:00:02]} f4 {[%emt 0:01:07]} 31. Qf2 {[%emt 0:00:35]} Rg3 {[%emt 0:02:36]} 32. d4 {[%emt 0:00:03]} Qh5 {[%emt 0:00:07]} 33. dxe5 {[%emt 0:00:15]} dxe5 {[%emt 0:00:02]} 34. Rd6 {[%emt 0:00:03]} Re8 {[%emt 0:01:04]} 35. Ra2 {[%emt 0:00:34]} Re7 {[%emt 0:00:33]} 36. Rad2 {[%emt 0:00:20]} Qh4 {[%emt 0:00:17]} 37. Qf1 {[%emt 0:00:48]} Rg5 {[%emt 0:00:15]} 38. Qf2 {[%emt 0:00:44]} Rg3 {[%emt 0:00:02]} 39. Qf1 {[%emt 0:00:02]} Rg5 $1 {[%emt 0:00:08]} 40. c5 {[%emt 0:00:56]} Qg3+ {[%emt 0:01:01]} 41. Kh1 {[%emt 0:00:02]} Qh4 {[%emt 0:00:00]} 42. Rd7 {[%emt 0:00:23]} Rg6 $1 {[%emt 0:00:20]} 43. R7d6 {[%emt 0:00:57]} ({White should try} 43. Rd8 $14) 43... Ree6 {[%emt 0:00:23]} (43... Rg5 $11) 44. Qd1 {[%emt 0:00:35]} Qg5 {[%emt 0:00:37]} (44... Re7 $14) 45. Kg1 {[%emt 0:00:09]} ({Better is} 45. Rd7 $16) 45... Qg3 $14 {[%emt 0:00:11]} 46. Rxe6 $1 {[%emt 0:00:08]} Rxe6 {[%emt 0:00:02]} 47. Rd6 {[%emt 0:00:04]} Rg6 {[%emt 0:00:28]} 48. Rxg6 {[%emt 0:00:15]} (48. Qd2 $16) 48... Qxg6 $11 {[%emt 0:00:08]} 49. Qd7 {[%emt 0:00:09]} Qg3 {[%emt 0:00:17]} 50. Kf1 {[%emt 0:00:01]} Qh2 {[%emt 0:00:05]} 51. Qf5+ {[%emt 0:00:05]} Kh8 {[%emt 0:00:01]} 52. Qf8+ {[%emt 0:00:01]} Kh7 {[%emt 0:00:00]} 53. Qf5+ {[%emt 0:00:01]} Kh8 {[%emt 0:00:01]} 54. Qxe5 {[%emt 0:00:19]} Qh1+ {[%emt 0:00:01]} 55. Kf2 {[%emt 0:00:01]} Qc1 {[%emt 0:00:01]} 56. Qd4 {[%emt 0:00:20]} Qc2+ {[%emt 0:00:08]} 57. Kg1 {[%emt 0:00:04]} Qb1+ {[%emt 0:00:13]} 58. Kh2 {[%emt 0:00:03]} Qe1 $1 {[%emt 0:00:02]} 59. Qd8+ {[%emt 0:01:01]} Kh7 {[%emt 0:00:01]} 60. Qd3 {[%emt 0:00:05]} Qg3+ {[%emt 0:00:03]} 61. Kh1 {[%emt 0:00:02]} Qe1+ {[%emt 0:00:01]} 62. Kh2 {[%emt 0:00:01]} Qg3+ {[%emt 0:00:05]} 63. Kg1 {[%emt 0:00:01]} Qe1+ {[%emt 0:00:02]} 64. Kh2 {[%emt 0:00:14]} Qg3+ {[%emt 0:00:05]} 1/2-1/2

[Event "GRENKE Chess Classic 2024"]
[Site "Karlsruhe"]
[Date "2024.03.27"]
[Round "4.1"]
[White "Rapport, Richard"]
[Black "Fridman, Daniel"]
[Result "1-0"]
[ECO "C00"]
[WhiteElo "2720"]
[BlackElo "2590"]
[Annotator "TA"]
[PlyCount "49"]
[EventDate "2024.03.26"]
[EventType "tourn"]
[EventCountry "GER"]
[SourceTitle "playchess.com"]
[Source "ChessBase"]
[SourceQuality "1"]
[TimeControl "2700+10"]

{[%evp 16,49,12,0,12,0,-6,2,27,16,13,24,26,10,6,0,0,0,0,0,26,32,49,33,45,44,210,223,228,226,354,345,451,463,1155,1145]} 1. e4 {[%emt 0:00:10]} e6 {[%emt 0:00:01]} 2. d3 {[%emt 0:00:42]} c5 {[%emt 0:00:02]} 3. g3 {[%emt 0:00:45]} Nc6 {[%emt 0:00:02]} 4. Bg2 {[%emt 0:00:16]} g6 {[%emt 0:00:02]} 5. f4 {[%emt 0:03:03]} Bg7 {[%emt 0:00:02]} 6. Nf3 {[%emt 0:00:09]} Nge7 {[%emt 0:00:03]} 7. O-O {[%emt 0:01:00]} O-O {[%emt 0:00:03]} 8. c3 {[%emt 0:00:09]} d6 {[%emt 0:00:17]} 9. a4 {[%emt 0:00:20]} b6 {[%emt 0:00:02]} 10. Na3 {[%emt 0:00:09]} Rb8 {[%emt 0:00:16]} 11. Be3 {[%emt 0:00:35]} Ba6 {[%emt 0:01:44] The position is equal.} 12. Bf2 {[%emt 0:02:33]} Qd7 {[%emt 0:00:48]} 13. Re1 {[%emt 0:01:42]} Rbd8 {[%emt 0:01:30]} 14. d4 {[%emt 0:02:35]} cxd4 {[%emt 0:00:45]} 15. cxd4 {[%emt 0:01:02]} Nb4 {[%emt 0:02:07]} 16. Nb5 {[%emt 0:01:01]} Rc8 {[%emt 0:01:53]} 17. Re2 {[%emt 0:00:35] Dodges Nc2} Bxb5 {[%emt 0:01:42]} 18. axb5 {[%emt 0:00:02]} Qxb5 {[%emt 0:00:04]} 19. Rxa7 {[%emt 0:04:45]} Nd3 {[%emt 0:00:25] ...Rc1 would now be deadly.} 20. Bf1 {[%emt 0:00:51]} (20. Rxe7 $2 {perishes.} Rc1 $19 (20... Nxb2 $2 {loses.} 21. Qf1 $18) (20... Nxb2 $2 {too greedy.} 21. Qd2 $18)) 20... Rc1 $2 {[%emt 0:04:20] [#] This costs Black the game.} (20... Nxf2 $14 21. Rxf2 Qe8) 21. Qd2 $1 $18 {[%emt 0:04:33]} Nc6 {[%emt 0:00:07]} 22. Ra3 {[%emt 0:01:08]} Ncb4 {[%emt 0:01:32]} (22... Rxf1+ $142 23. Kxf1 Ncb4) 23. Ne1 {[%emt 0:04:24]} Nxe1 {[%emt 0:10:08]} 24. Qxc1 {[%emt 0:01:26]} Nbd3 {[%emt 0:00:48]} (24... Ned3 $142 25. Rd2 Nxc1 26. Bxb5 d5) 25. Rxe1 {[%emt 0:00:15] Weighted Error Value: White=0.02 (flawless) /Black=0.41.  Loses game:     	---       	Black=1      Mistake:       	---       	Black=2      Inaccurate:     	---       	Black=2      OK:         	White=5     	Black=3      Best:        	White=5     	Black=1      Strong:       	White=1     	---} 1-0

[Event "GRENKE Chess Classic 2024"]
[Site "Karlsruhe"]
[Date "2024.03.27"]
[Round "4.2"]
[White "Carlsen, Magnus"]
[Black "Vachier-Lagrave, Maxime"]
[Result "1/2-1/2"]
[ECO "B50"]
[WhiteElo "2830"]
[BlackElo "2728"]
[Annotator "TA"]
[PlyCount "142"]
[EventDate "2024.03.26"]
[EventType "tourn"]
[EventCountry "GER"]
[SourceTitle "playchess.com"]
[Source "ChessBase"]
[SourceQuality "1"]
[TimeControl "2700+10"]

{[%evp 60,142,287,288,293,285,289,154,633,621,581,36,31,0,40,51,37,0,0,0,0,0,0,0,0,0,0,0,0,0,0,0,0,0,0,0,0,0,0,0,0,0,0,0,0,0,0,0,0,0,0,0,0,0,8,8,8,8,8,8,8,8,8,0,0,0,0,0,214,0,0,0,0,0,0,0,0,0,0,0,0,0,0,0,0]} 1. e4 {[%emt 0:00:10]} c5 {[%emt 0:00:03]} 2. Nf3 {[%emt 0:00:21]} d6 {[%emt 0:00:02]} 3. Nc3 {[%emt 0:00:20]} Nf6 {[%emt 0:00:05]} 4. Be2 {[%emt 0:00:06]} e5 {[%emt 0:01:26]} 5. Bc4 {[%emt 0:00:02]} Be7 {[%emt 0:00:02]} 6. d3 {[%emt 0:00:16]} Nc6 {[%emt 0:01:37]} 7. Bg5 {[%emt 0:00:43]} Nd7 {[%emt 0:00:47]} 8. Bxe7 {[%emt 0:00:17]} Qxe7 {[%emt 0:00:02]} 9. Nd5 {[%emt 0:00:51]} Qd8 {[%emt 0:00:01]} 10. h4 {[%emt 0:01:11]} h6 {[%emt 0:02:53]} 11. c3 {[%emt 0:00:59]} Nf6 {[%emt 0:00:39]} 12. Nd2 {[%emt 0:01:09]} O-O {[%emt 0:02:05]} 13. Nxf6+ {[%emt 0:02:53]} Qxf6 {[%emt 0:00:02]} 14. Nf1 {[%emt 0:00:11]} Kh8 {[%emt 0:01:37]} 15. Ne3 {[%emt 0:00:15]} Qg6 {[%emt 0:00:53]} 16. g4 {[%emt 0:01:25]} Nd8 {[%emt 0:00:09]} 17. Qf3 {[%emt 0:02:06]} Bd7 {[%emt 0:02:10]} 18. g5 {[%emt 0:07:34]} Ne6 {[%emt 0:03:36]} 19. gxh6 {[%emt 0:03:16]} gxh6 {[%emt 0:00:58]} 20. Nd5 {[%emt 0:00:53]} f5 {[%emt 0:00:36]} 21. O-O-O {[%emt 0:05:59]} b5 {[%emt 0:05:40]} 22. Rhg1 {[%emt 0:03:40]} Qh7 {[%emt 0:01:52]} 23. Bb3 {[%emt 0:00:03]} c4 {[%emt 0:04:57]} 24. Bc2 {[%emt 0:02:13]} fxe4 {[%emt 0:05:14]} 25. Qxe4 {[%emt 0:00:02]} Qxe4 {[%emt 0:00:05]} 26. dxe4 {[%emt 0:00:02]} Be8 {[%emt 0:01:00]} 27. f4 {[%emt 0:08:46]} Bh5 {[%emt 0:03:39]} 28. Rd2 {[%emt 0:00:02]} exf4 {[%emt 0:00:36]} 29. Nc7 {[%emt 0:00:50]} Rg8 {[%emt 0:03:35]} 30. Rxg8+ {[%emt 0:00:02]} Rxg8 {[%emt 0:00:01]} 31. Nxe6 {[%emt 0:00:02]} Rg1+ {[%emt 0:00:02]} 32. Bd1 {[%emt 0:00:02]} Rf1 {[%emt 0:00:33]} 33. Rxd6 {[%emt 0:02:02]} (33. Kc2 $18 f3 34. Nf4 (34. Rxd6 Bg4 $18)) 33... f3 $2 {[%emt 0:00:01]} (33... Bg4 $16 34. e5 f3) 34. Nf4 $18 {[%emt 0:00:10]} Bg4 {[%emt 0:00:06]} 35. Ng6+ $2 {[%emt 0:01:52]} (35. Rxh6+ $2 Kg7 36. Rg6+ Kf7 $19) ({White must play} 35. Nh5 $18 Rg1 36. Rd8+ (36. Rxh6+ Kg8 $18) 36... Kh7 37. Nf6+ Kg7 38. Nxg4 Rxg4 39. Rd7+ (39. Bxf3 Rf4 $18) 39... Kf8 40. Bxf3 (40. Rxa7 f2 $18) 40... Rxh4 41. Rxa7 (41. e5 Rh3 $18)) 35... Kg7 $1 $14 {[%emt 0:00:50]} 36. Kc2 {[%emt 0:00:11]} (36. Ne5 $5 Bh5 37. Kc2 $11) 36... h5 {[%emt 0:00:57]} 37. Ne5 {[%emt 0:00:09]} f2 $1 {[%emt 0:00:22]} 38. Rg6+ {[%emt 0:00:11]} Kh7 {[%emt 0:00:24]} 39. Rf6 {[%emt 0:00:01]} (39. Bxg4 $2 {loses.} hxg4 (39... Rc1+ 40. Kxc1 f1=Q+ 41. Bd1 $17) 40. Rxg4 Rc1+ 41. Kxc1 f1=Q+ (41... f1=R+ $2 {perishes.} 42. Kd2 $18) 42. Kd2 Qf2+ 43. Kd1 Qxb2 $19) 39... Bxd1+ {[%emt 0:00:29]} 40. Kd2 {[%emt 0:00:01]} Bg4 {[%emt 0:00:34]} 41. Ke3 {[%emt 0:00:07]} Re1+ $1 {[%emt 0:00:56]} 42. Kxf2 {[%emt 0:00:01]} Rxe4 {[%emt 0:00:01]} 43. Nxg4 {[%emt 0:00:02]} Rxg4 {[%emt 0:00:01]} 44. Rf5 {[%emt 0:00:01]} Kg6 {[%emt 0:00:12]} 45. Rxb5 {[%emt 0:00:02]} Rxh4 {[%emt 0:00:01]} 46. Kg3 {[%emt 0:00:06]} Rg4+ {[%emt 0:00:27]} 47. Kh3 {[%emt 0:00:01]} Re4 {[%emt 0:00:05]} 48. a4 {[%emt 0:00:01]} a6 {[%emt 0:00:23]} 49. Ra5 {[%emt 0:00:05]} Re6 {[%emt 0:00:05]} 50. Kh4 {[%emt 0:00:02]} Re4+ {[%emt 0:00:13]} 51. Kg3 {[%emt 0:00:02]} Re6 {[%emt 0:00:02]} 52. Rc5 {[%emt 0:00:06]} Rb6 {[%emt 0:00:08]} 53. Rxc4 {[%emt 0:00:00]} Rxb2 {[%emt 0:00:01]} 54. Rc6+ {[%emt 0:00:01]} Kf7 {[%emt 0:00:14]} 55. Rxa6 {[%emt 0:00:01]} Ke7 {[%emt 0:00:02]} 56. Kf4 {[%emt 0:00:11]} h4 {[%emt 0:00:21]} 57. Ke5 {[%emt 0:00:03]} h3 {[%emt 0:00:34]} 58. Ra7+ {[%emt 0:00:01]} Kd8 {[%emt 0:00:01]} 59. Rh7 {[%emt 0:00:28]} h2 {[%emt 0:00:01]} 60. c4 {[%emt 0:00:11]} Rd2 {[%emt 0:00:24]} 61. c5 {[%emt 0:00:12]} Kc8 {[%emt 0:00:02]} 62. a5 {[%emt 0:00:01]} Rd1 {[%emt 0:00:23]} 63. Rxh2 {[%emt 0:00:03]} Kb7 $2 {[%emt 0:00:02] [#]} (63... Kc7 $11 {and Black is okay.}) 64. Rh6 $2 {[%emt 0:00:42]} (64. Ra2 $1 $18) 64... Re1+ $11 {[%emt 0:00:01]} 65. Kd6 {[%emt 0:00:12]} Rd1+ {[%emt 0:00:01]} 66. Ke7 {[%emt 0:00:03]} Kc7 {[%emt 0:00:02]} 67. a6 {[%emt 0:00:05]} Ra1 {[%emt 0:00:36]} 68. Rf6 {[%emt 0:01:11]} Ra5 {[%emt 0:00:07]} 69. c6 {[%emt 0:01:05]} Rxa6 {[%emt 0:00:01]} 70. Re6 {[%emt 0:00:01]} Rxc6 {[%emt 0:00:01]} 71. Rxc6+ {[%emt 0:00:01]} Kxc6 {[%emt 0:00:12]} 1/2-1/2